[Event "Prague Open 2025"]
[Site "Prague"]
[Date "2025.01.11"]
[Round "3.5"]
[White "Horak, Martin"]
[Black "Park, Inchan"]
[Result "1-0"]
[Annotator "RC"]
[ECO "B12"]
[WhiteElo "2357"]
[BlackElo "2075"]
[PlyCount "63"]
[EventDate "2025.01.07"]
[EventType "swiss"]
[EventCountry "CZE"]
[SourceTitle "playchess.com"]
[Source "ChessBase"]
[SourceQuality "1"]
[TimeControl "40/5400+30:1800+30"]

1. e4 {[%emt 0:20:50]} c6 {[%emt 0:00:29]} 2. d4 {[%emt 0:00:41]} d5 3. e5 {[%emt 0:00:04]} c5 {[%emt 0:00:12]} 4. Nf3 {[%emt 0:00:15]} cxd4 {[%emt 0:00:10]} 5. Qxd4 {[%emt 0:00:05]} Nc6 {[%emt 0:00:05]} 6. Qf4 {[%emt 0:00:05]} e6 {[%emt 0:00:06]} 7. Bd3 {[%emt 0:01:16]} Nb4 {[%emt 0:01:31]} 8. Bd2 {[%emt 0:04:01]} Nxd3+ {[%emt 0:02:17]} 9. cxd3 {[%emt 0:00:05]} h5 {[%emt 0:02:54]} 10. Nc3 {[%emt 0:06:45]} Bd7 {[%emt 0:04:34]} 11. h4 {[%emt 0:12:51]} Nh6 {[%emt 0:09:43]} 12. Nd4 {[%emt 0:02:38]} Bc5 {[%emt 0:09:50]} 13. Nce2 {[%emt 0:04:00]} Bxd4 {[%emt 0:17:39]} 14. Nxd4 {[%emt 0:00:34]} f6 {[%emt 0:04:08]} 15. Qg3 {[%emt 0:07:01]} Kf7 {[%emt 0:01:58]} 16. Rc1 {[%emt 0:08:14]} Rc8 {[%emt 0:18:43]} 17. Rxc8 {[%emt 0:03:22]} Qxc8 {[%emt 0:00:37]} 18. O-O {[%emt 0:00:32]} Ng4 {[%emt 0:00:41]} 19. exf6 {[%emt 0:01:34]} gxf6 {[%emt 0:00:05]} 20. Rc1 {[%emt 0:01:02]} Qb8 {[%emt 0:03:42]} 21. Qc7 {[%emt 0:03:09]} Rd8 {[%emt 0:09:49]} 22. Ba5 {[%emt 0:08:27]} b6 {[%emt 0:03:05]} 23. Bb4 {[%emt 0:00:05]} Qxc7 {[%emt 0:00:20]} 24. Rxc7 {[%emt 0:00:13]} Ne5 {[%emt 0:02:23]} 25. Bd6 {[%emt 0:02:19]} Kg6 {[%emt 0:04:55]} 26. Bxe5 {[%emt 0:04:13]} fxe5 {[%emt 0:00:22]} 27. Nf3 {[%emt 0:00:02]} Kf5 {[%emt 0:00:27]} 28. Rxa7 {[%emt 0:00:17]} e4 {[%emt 0:00:39]} 29. dxe4+ {[%emt 0:01:10]} dxe4 {[%emt 0:01:59]} 30. Ng5 {[%emt 0:00:44]} Bc6 {[%emt 0:01:01]} 31. Rf7+ {[%emt 0:04:59]} Kg4 {[%emt 0:00:53]} 32. Nxe6 {[%emt 0:00:35]} 1-0

[Event "Prague Open 2025"]
[Site "Prague"]
[Date "2025.01.11"]
[Round "3.6"]
[White "Felix, Raphael"]
[Black "Lalic, Bogdan"]
[Result "1/2-1/2"]
[Annotator "RC"]
[ECO "B46"]
[WhiteElo "2127"]
[BlackElo "2321"]
[PlyCount "30"]
[EventDate "2025.01.07"]
[EventType "swiss"]
[EventCountry "CZE"]
[SourceTitle "playchess.com"]
[Source "ChessBase"]
[SourceQuality "1"]
[TimeControl "40/5400+30:1800+30"]

1. e4 {[%emt 0:00:09]} c5 {[%emt 0:12:16]} 2. Nf3 {[%emt 0:00:39]} Nc6 {[%emt 0:00:10]} 3. d4 {[%emt 0:00:45]} cxd4 {[%emt 0:00:08]} 4. Nxd4 {[%emt 0:00:35]} e6 {[%emt 0:00:10]} 5. Nc3 {[%emt 0:01:20]} a6 {[%emt 0:00:09]} 6. Be3 {[%emt 0:03:13]} Nf6 {[%emt 0:00:11]} 7. Qf3 {[%emt 0:07:19]} Bb4 {[%emt 0:00:20]} 8. Nxc6 {[%emt 0:14:41]} bxc6 {[%emt 0:01:03]} 9. Bd4 {[%emt 0:01:54]} c5 {[%emt 0:00:24]} 10. Be5 {[%emt 0:03:25]} Bb7 {[%emt 0:00:15]} 11. Qg3 {[%emt 0:00:27]} O-O {[%emt 0:00:54]} 12. Bd3 {[%emt 0:02:04]} c4 {[%emt 0:06:21]} 13. Bxc4 {[%emt 0:05:29]} Bxe4 {[%emt 0:00:43]} 14. O-O-O {[%emt 0:05:44]} Bxc3 {[%emt 0:03:16]} 15. Bxc3 {[%emt 0:01:53]} d5 {[%emt 0:00:11]} 1/2-1/2

[Event "Prague Open 2025"]
[Site "Prague"]
[Date "2025.01.11"]
[Round "3.7"]
[White "Salgovic, Simon"]
[Black "Marek, Matyas"]
[Result "1/2-1/2"]
[Annotator "RC"]
[ECO "B42"]
[WhiteElo "2102"]
[BlackElo "2314"]
[PlyCount "24"]
[EventDate "2025.01.07"]
[EventType "swiss"]
[EventCountry "CZE"]
[SourceTitle "playchess.com"]
[Source "ChessBase"]
[SourceQuality "1"]
[TimeControl "40/5400+30:1800+30"]

1. e4 {[%emt 0:07:24]} c5 {[%emt 0:00:04]} 2. Nf3 {[%emt 0:00:12]} e6 {[%emt 0:00:04]} 3. d4 {[%emt 0:02:14]} cxd4 {[%emt 0:00:09]} 4. Nxd4 {[%emt 0:00:05]} a6 {[%emt 0:00:04]} 5. Bd3 {[%emt 0:00:52]} b5 {[%emt 0:00:15]} 6. O-O {[%emt 0:02:05]} Bb7 {[%emt 0:00:34]} 7. a3 {[%emt 0:02:06]} Ne7 {[%emt 0:04:13]} 8. Be3 {[%emt 0:12:10]} Nbc6 {[%emt 0:00:53]} 9. Nc3 {[%emt 0:04:00]} d5 {[%emt 0:08:01]} 10. Nxc6 {[%emt 0:13:58]} Bxc6 {[%emt 0:00:12]} 11. Bc5 {[%emt 0:00:56]} Rc8 {[%emt 0:06:39]} 12. Re1 {[%emt 0:09:49]} dxe4 {[%emt 0:22:28]} 1/2-1/2

[Event "Prague Open 2025"]
[Site "Prague"]
[Date "2025.01.11"]
[Round "3.8"]
[White "Shapovalovi, Vasiko"]
[Black "Vardanyan, Aras"]
[Result "0-1"]
[Annotator "RC"]
[ECO "A05"]
[WhiteElo "2078"]
[BlackElo "2312"]
[PlyCount "94"]
[EventDate "2025.01.07"]
[EventType "swiss"]
[EventCountry "CZE"]
[SourceTitle "playchess.com"]
[Source "ChessBase"]
[SourceQuality "1"]
[TimeControl "40/5400+30:1800+30"]

1. Nf3 {[%emt 0:00:04]} Nf6 {[%emt 0:21:58]} 2. c4 {[%emt 0:00:29]} g6 {[%emt 0:00:31]} 3. b3 {[%emt 0:00:11]} Bg7 {[%emt 0:00:06]} 4. Bb2 {[%emt 0:00:03]} O-O {[%emt 0:00:07]} 5. g3 {[%emt 0:00:04]} b6 {[%emt 0:00:12]} 6. Bg2 {[%emt 0:00:10]} Bb7 {[%emt 0:00:05]} 7. O-O {[%emt 0:00:09]} c5 {[%emt 0:00:07]} 8. Nc3 {[%emt 0:02:30]} d6 {[%emt 0:01:17]} 9. d3 {[%emt 0:00:47]} a6 {[%emt 0:01:27]} 10. a3 {[%emt 0:01:18]} Nbd7 {[%emt 0:02:17]} 11. Qd2 {[%emt 0:04:07]} Qc7 {[%emt 0:01:56]} 12. b4 {[%emt 0:02:46]} e6 {[%emt 0:02:14]} 13. Rab1 {[%emt 0:05:23]} d5 {[%emt 0:02:46]} 14. cxd5 {[%emt 0:01:16]} exd5 {[%emt 0:00:24]} 15. bxc5 {[%emt 0:00:26]} bxc5 {[%emt 0:00:24]} 16. Rfc1 {[%emt 0:01:43]} Bc6 {[%emt 0:04:08]} 17. e3 {[%emt 0:16:28]} Rab8 {[%emt 0:03:08]} 18. Qc2 {[%emt 0:02:53]} Rfc8 {[%emt 0:05:13]} 19. Ne2 {[%emt 0:05:29]} Rb5 {[%emt 0:04:22]} 20. Nf4 {[%emt 0:09:20]} Rcb8 {[%emt 0:03:21]} 21. Nd2 {[%emt 0:07:41]} Qd6 {[%emt 0:06:18]} 22. Ba1 {[%emt 0:06:13]} R8b7 {[%emt 0:04:22]} 23. Rxb5 {[%emt 0:07:37]} Rxb5 {[%emt 0:02:27]} 24. Nb3 {[%emt 0:01:56]} Bf8 {[%emt 0:04:20]} 25. Bxf6 {[%emt 0:03:55]} Nxf6 {[%emt 0:01:15]} 26. a4 {[%emt 0:00:33]} Rb4 {[%emt 0:01:35]} 27. Nxc5 {[%emt 0:00:17]} Qxc5 {[%emt 0:00:48]} 28. Qxc5 {[%emt 0:00:05]} Bxc5 {[%emt 0:00:03]} 29. Rxc5 {[%emt 0:00:04]} Rb1+ {[%emt 0:00:22]} 30. Bf1 {[%emt 0:00:04]} Bxa4 {[%emt 0:00:08]} 31. Nxd5 {[%emt 0:09:34]} Nxd5 {[%emt 0:01:02]} 32. Rxd5 {[%emt 0:00:03]} Bb5 {[%emt 0:03:20]} 33. e4 {[%emt 0:00:23]} a5 {[%emt 0:01:50]} 34. Kg2 {[%emt 0:00:15]} Kf8 {[%emt 0:02:47]} 35. Rd8+ {[%emt 0:00:51]} Ke7 {[%emt 0:00:05]} 36. Ra8 {[%emt 0:00:04]} a4 {[%emt 0:00:23]} 37. Be2 {[%emt 0:06:17]} Kd6 {[%emt 0:03:37]} 38. Bf3 {[%emt 0:02:43]} Kc5 {[%emt 0:01:57]} 39. e5 {[%emt 0:02:34]} Bxd3 {[%emt 0:03:48]} 40. g4 {[%emt 0:00:34]} Bb5 {[%emt 0:02:28]} 41. Rd8 {[%emt 0:04:59]} Bc4 {[%emt 0:01:22]} 42. Rc8+ {[%emt 0:04:25]} Kd4 {[%emt 0:00:16]} 43. Ra8 {[%emt 0:00:46]} Ra1 {[%emt 0:00:20]} 44. Bc6 {[%emt 0:02:24]} a3 {[%emt 0:00:19]} 45. Ra4 {[%emt 0:00:05]} Kc5 {[%emt 0:00:38]} 46. Be8 {[%emt 0:02:19]} Bd5+ {[%emt 0:00:53]} 47. Kh3 {[%emt 0:00:21]} a2 {[%emt 0:00:12]} 0-1

[Event "Prague Open 2025"]
[Site "Prague"]
[Date "2025.01.11"]
[Round "3.9"]
[White "Radzimski, Antoni"]
[Black "Filindash, Nikita"]
[Result "1-0"]
[Annotator "RC"]
[ECO "D35"]
[WhiteElo "2289"]
[BlackElo "2072"]
[PlyCount "73"]
[EventDate "2025.01.07"]
[EventType "swiss"]
[EventCountry "CZE"]
[SourceTitle "playchess.com"]
[Source "ChessBase"]
[SourceQuality "1"]
[TimeControl "40/5400+30:1800+30"]

1. c4 {[%emt 0:01:43]} e6 {[%emt 0:00:15]} 2. Nc3 {[%emt 0:00:35]} d5 {[%emt 0:00:05]} 3. d4 {[%emt 0:00:04]} Nf6 {[%emt 0:03:37]} 4. cxd5 {[%emt 0:00:38]} exd5 {[%emt 0:00:03]} 5. Bg5 {[%emt 0:00:11]} Be7 {[%emt 0:00:17]} 6. e3 {[%emt 0:00:06]} O-O {[%emt 0:00:14]} 7. Bd3 {[%emt 0:00:04]} c6 {[%emt 0:00:13]} 8. Qc2 {[%emt 0:00:08]} Nbd7 {[%emt 0:00:21]} 9. Nge2 {[%emt 0:00:09]} Re8 {[%emt 0:00:42]} 10. O-O {[%emt 0:00:08]} h6 {[%emt 0:07:01]} 11. Bh4 {[%emt 0:00:27]} Ne4 {[%emt 0:02:40]} 12. Bxe7 {[%emt 0:02:19]} Qxe7 {[%emt 0:00:11]} 13. Bxe4 {[%emt 0:01:37]} dxe4 {[%emt 0:00:10]} 14. a3 {[%emt 0:00:31]} Nf6 {[%emt 0:05:39]} 15. b4 {[%emt 0:02:55]} b6 {[%emt 0:03:58]} 16. Rfc1 {[%emt 0:04:31]} Bb7 {[%emt 0:02:55]} 17. Rab1 {[%emt 0:01:03]} Rac8 {[%emt 0:00:21]} 18. Qb3 {[%emt 0:06:42]} Red8 {[%emt 0:05:10]} 19. a4 {[%emt 0:00:54]} Ba8 {[%emt 0:08:35]} 20. a5 {[%emt 0:04:43]} bxa5 {[%emt 0:13:19]} 21. bxa5 {[%emt 0:00:14]} c5 {[%emt 0:00:19]} 22. dxc5 {[%emt 0:04:06]} Rxc5 {[%emt 0:01:27]} 23. a6 {[%emt 0:01:59]} Nd7 {[%emt 0:11:30]} 24. Nd4 {[%emt 0:02:55]} Ne5 {[%emt 0:04:41]} 25. Ncb5 {[%emt 0:03:56]} Nd3 {[%emt 0:04:59]} 26. Rxc5 {[%emt 0:00:35]} Qxc5 {[%emt 0:00:17]} 27. h3 {[%emt 0:03:23]} Qb6 {[%emt 0:03:53]} 28. Nf5 {[%emt 0:06:40]} Nc5 {[%emt 0:17:27]} 29. Qc4 {[%emt 0:01:20]} Ne6 {[%emt 0:01:30]} 30. Nc3 {[%emt 0:01:47]} Qa5 {[%emt 0:00:12]} 31. Nd4 {[%emt 0:04:02]} Nxd4 {[%emt 0:03:13]} 32. exd4 {[%emt 0:00:10]} g6 {[%emt 0:00:42]} 33. Rd1 {[%emt 0:05:46]} Rd6 {[%emt 0:00:31]} 34. d5 {[%emt 0:01:28]} Kh7 {[%emt 0:00:25]} 35. Nxe4 {[%emt 0:00:13]} Rxa6 {[%emt 0:00:35]} 36. d6 {[%emt 0:00:24]} Bxe4 {[%emt 0:00:31]} 37. Qxf7+ {[%emt 0:00:19]} 1-0

[Event "Prague Open 2025"]
[Site "Prague"]
[Date "2025.01.11"]
[Round "3.10"]
[White "Van der Werf, Joel"]
[Black "Sokhor, Nazar"]
[Result "0-1"]
[Annotator "RC"]
[ECO "C11"]
[WhiteElo "2075"]
[BlackElo "2265"]
[PlyCount "114"]
[EventDate "2025.01.07"]
[EventType "swiss"]
[EventCountry "CZE"]
[SourceTitle "playchess.com"]
[Source "ChessBase"]
[SourceQuality "1"]
[TimeControl "40/5400+30:1800+30"]

1. e4 {[%emt 0:00:04]} e6 {[%emt 0:00:10]} 2. d4 {[%emt 0:00:15]} d5 {[%emt 0:00:10]} 3. Nc3 {[%emt 0:00:05]} Nf6 {[%emt 0:00:29]} 4. e5 {[%emt 0:00:07]} Nfd7 {[%emt 0:00:12]} 5. f4 {[%emt 0:00:09]} c5 {[%emt 0:00:18]} 6. Nf3 {[%emt 0:00:21]} Nc6 {[%emt 0:00:20]} 7. Be3 {[%emt 0:00:06]} Qb6 {[%emt 0:01:26]} 8. Na4 {[%emt 0:01:45]} Qa5+ {[%emt 0:00:14]} 9. c3 {[%emt 0:00:13]} cxd4 {[%emt 0:02:01]} 10. b4 {[%emt 0:00:06]} Qc7 {[%emt 0:01:23]} 11. Nxd4 {[%emt 0:02:20]} a6 {[%emt 0:01:19]} 12. Nb2 {[%emt 0:02:23]} Be7 {[%emt 0:03:11]} 13. Be2 {[%emt 0:11:59]} g5 {[%emt 0:08:05]} 14. fxg5 {[%emt 0:11:41]} Ncxe5 {[%emt 0:02:38]} 15. Qd2 {[%emt 0:05:30]} Nb6 {[%emt 0:02:45]} 16. O-O {[%emt 0:07:37]} Bd7 {[%emt 0:03:28]} 17. a4 {[%emt 0:04:47]} Bd6 {[%emt 0:03:04]} 18. h3 {[%emt 0:08:23]} Rf8 {[%emt 0:06:35]} 19. Nf3 {[%emt 0:06:36]} Nec4 {[%emt 0:13:23]} 20. Nxc4 {[%emt 0:00:14]} dxc4 {[%emt 0:00:31]} 21. Qc2 {[%emt 0:03:38]} Nd5 {[%emt 0:00:30]} 22. Bd4 {[%emt 0:03:10]} O-O-O {[%emt 0:00:45]} 23. Nd2 {[%emt 0:03:13]} e5 {[%emt 0:11:55]} 24. Bf2 {[%emt 0:00:38]} Be7 {[%emt 0:07:59]} 25. Nxc4 {[%emt 0:06:42]} Be6 {[%emt 0:02:11]} 26. a5 {[%emt 0:04:14]} Bxg5 {[%emt 0:02:22]} 27. Nb6+ {[%emt 0:03:37]} Kb8 {[%emt 0:00:13]} 28. Nxd5 {[%emt 0:02:28]} Rxd5 {[%emt 0:00:03]} 29. Rad1 {[%emt 0:00:08]} f5 {[%emt 0:08:02]} 30. c4 {[%emt 0:03:20]} Rxd1 {[%emt 0:04:21]} 31. Rxd1 {[%emt 0:00:09]} Rg8 {[%emt 0:00:36]} 32. Bc5 {[%emt 0:02:25]} Be7 {[%emt 0:00:15]} 33. Bxe7 {[%emt 0:00:31]} Qxe7 {[%emt 0:00:02]} 34. c5 {[%emt 0:00:29]} Qg5 {[%emt 0:04:52]} 35. Bf1 {[%emt 0:00:25]} f4 {[%emt 0:02:35]} 36. Qd3 {[%emt 0:00:44]} Bc8 {[%emt 0:02:07]} 37. Re1 {[%emt 0:04:33]} Ka8 {[%emt 0:01:20]} 38. Qc3 {[%emt 0:02:45]} Re8 {[%emt 0:01:52]} 39. c6 {[%emt 0:01:23]} e4 {[%emt 0:01:00]} 40. Kh1 {[%emt 0:00:32]} Qe5 {[%emt 0:02:15]} 41. Qc4 {[%emt 0:10:15]} Re6 {[%emt 0:05:54]} 42. Bd3 {[%emt 0:09:02]} e3 {[%emt 0:03:25]} 43. cxb7+ {[%emt 0:01:55]} Bxb7 {[%emt 0:00:05]} 44. Qc5 {[%emt 0:01:53]} f3 {[%emt 0:01:03]} 45. Qxe5 {[%emt 0:01:39]} fxg2+ {[%emt 0:00:28]} 46. Kh2 {[%emt 0:02:08]} Rxe5 {[%emt 0:00:02]} 47. Bxh7 {[%emt 0:00:35]} Rg5 {[%emt 0:11:53]} 48. Bd3 {[%emt 0:00:56]} Ka7 {[%emt 0:01:03]} 49. Be2 {[%emt 0:03:32]} Rf5 {[%emt 0:00:29]} 50. Bd3 {[%emt 0:00:14]} Rf2 {[%emt 0:03:46]} 51. Kg1 {[%emt 0:00:42]} Rd2 {[%emt 0:00:42]} 52. Bc4 {[%emt 0:01:44]} Bf3 {[%emt 0:01:16]} 53. Bb3 {[%emt 0:00:32]} Rb2 {[%emt 0:01:15]} 54. Bf7 {[%emt 0:01:13]} Rxb4 {[%emt 0:00:50]} 55. Ba2 {[%emt 0:00:42]} Rd4 {[%emt 0:00:51]} 56. Bb3 {[%emt 0:00:24]} Rd3 {[%emt 0:00:43]} 57. Ba2 {[%emt 0:00:48]} e2 {[%emt 0:00:48]} 0-1

[Event "Prague Open 2025"]
[Site "Prague"]
[Date "2025.01.11"]
[Round "3.11"]
[White "Taborsky, Rostislav"]
[Black "Chan, Kim Yew"]
[Result "1/2-1/2"]
[Annotator "ChessBase"]
[ECO "D41"]
[WhiteElo "2069"]
[BlackElo "2258"]
[PlyCount "74"]
[EventDate "2025.01.07"]
[EventType "swiss"]
[EventCountry "CZE"]
[SourceTitle "playchess.com"]
[Source "ChessBase"]
[SourceQuality "1"]
[TimeControl "40/5400+30:1800+30"]

1. d4 {[%emt 0:15:36]} Nf6 {[%emt 0:00:05]} 2. c4 {[%emt 0:00:33]} e6 {[%emt 0:00:03]} 3. Nf3 {[%emt 0:00:03]} d5 {[%emt 0:00:40]} 4. Nc3 {[%emt 0:00:22]} c5 {[%emt 0:00:03]} 5. cxd5 {[%emt 0:00:14]} Nxd5 {[%emt 0:00:02]} 6. e4 {[%emt 0:00:37]} Nxc3 {[%emt 0:00:02]} 7. bxc3 {[%emt 0:00:08]} cxd4 {[%emt 0:00:01]} 8. cxd4 {[%emt 0:00:16]} Bb4+ {[%emt 0:00:02]} 9. Bd2 {[%emt 0:00:07]} Bxd2+ {[%emt 0:00:02]} 10. Qxd2 {[%emt 0:00:19]} O-O {[%emt 0:00:02]} 11. h4 {[%emt 0:00:09]} b6 {[%emt 0:09:21]} 12. h5 {[%emt 0:00:22]} h6 {[%emt 0:00:27]} 13. Rd1 {[%emt 0:00:33]} Bb7 {[%emt 0:00:42]} 14. Bd3 {[%emt 0:00:08]} Nc6 {[%emt 0:00:48]} 15. Qe3 {[%emt 0:22:43]} Nb4 {[%emt 0:03:39]} 16. Bb1 {[%emt 0:18:49]} Ba6 {[%emt 0:06:55]} 17. Qb3 {[%emt 0:02:30]} Qd6 {[%emt 0:10:38]} 18. Qa4 {[%emt 0:02:09]} Bb7 {[%emt 0:04:21]} 19. O-O {[%emt 0:02:27]} f5 {[%emt 0:13:36]} 20. d5 {[%emt 0:00:52]} fxe4 {[%emt 0:00:34]} 21. dxe6 {[%emt 0:00:05]} Nd3 {[%emt 0:11:26]} 22. Ne1 {[%emt 0:01:46]} Nc5 {[%emt 0:03:36]} 23. Rxd6 {[%emt 0:01:43]} Nxa4 {[%emt 0:00:01]} 24. Bc2 {[%emt 0:00:23]} Nc5 {[%emt 0:00:51]} 25. f4 {[%emt 0:05:29]} Rfd8 {[%emt 0:03:14]} 26. Rxd8+ {[%emt 0:05:05]} Rxd8 {[%emt 0:00:08]} 27. f5 {[%emt 0:00:12]} Rd2 {[%emt 0:02:19]} 28. Bb3 {[%emt 0:16:56]} Nxb3 {[%emt 0:01:21]} 29. axb3 {[%emt 0:00:01]} Bd5 {[%emt 0:06:25]} 30. e7 {[%emt 0:02:58]} Bc6 {[%emt 0:01:05]} 31. f6 {[%emt 0:01:00]} Kf7 {[%emt 0:03:29]} 32. fxg7+ {[%emt 0:00:17]} Kxg7 {[%emt 0:00:01]} 33. Rf8 {[%emt 0:00:27]} Rd1 {[%emt 0:04:37]} 34. Kf2 {[%emt 0:00:50]} Rd2+ {[%emt 0:00:29]} 35. Kg1 {[%emt 0:00:48]} Rd1 {[%emt 0:00:01]} 36. Kf2 {[%emt 0:00:15]} Rd2+ {[%emt 0:00:01]} 37. Kg1 {[%emt 0:00:58]} Rd1 1/2-1/2

[Event "Prague Open 2025"]
[Site "Prague"]
[Date "2025.01.11"]
[Round "3.12"]
[White "Tolmacevs, Artjoms"]
[Black "Llopis de Aysa, Manuel"]
[Result "1-0"]
[Annotator "RC"]
[ECO "C16"]
[WhiteElo "2252"]
[BlackElo "2031"]
[PlyCount "75"]
[EventDate "2025.01.07"]
[EventType "swiss"]
[EventCountry "CZE"]
[SourceTitle "playchess.com"]
[Source "ChessBase"]
[SourceQuality "1"]
[TimeControl "40/5400+30:1800+30"]

1. e4 {[%emt 0:00:01]} e6 {[%emt 0:00:07]} 2. d4 {[%emt 0:00:05]} d5 {[%emt 0:00:04]} 3. Nc3 {[%emt 0:00:05]} Bb4 {[%emt 0:00:08]} 4. e5 {[%emt 0:00:02]} Ne7 {[%emt 0:00:42]} 5. Bd2 {[%emt 0:03:25]} Bxc3 {[%emt 0:00:47]} 6. Bxc3 {[%emt 0:03:48]} b6 {[%emt 0:00:27]} 7. Qg4 {[%emt 0:05:16]} O-O {[%emt 0:00:31]} 8. h4 {[%emt 0:07:50]} Ba6 {[%emt 0:16:23]} 9. Bxa6 {[%emt 0:01:26]} Nxa6 {[%emt 0:00:03]} 10. Ne2 {[%emt 0:05:32]} c5 {[%emt 0:06:13]} 11. Ng3 {[%emt 0:07:45]} cxd4 {[%emt 0:04:08]} 12. Nh5 {[%emt 0:10:33]} Nf5 {[%emt 0:00:38]} 13. Bd2 {[%emt 0:14:21]} Qc7 {[%emt 0:06:06]} 14. O-O {[%emt 0:02:05]} Kh8 {[%emt 0:03:01]} 15. Rac1 {[%emt 0:15:34]} Nc5 {[%emt 0:17:40]} 16. Bf4 {[%emt 0:08:16]} Qe7 {[%emt 0:05:10]} 17. Bg5 {[%emt 0:01:49]} f6 {[%emt 0:18:07]} 18. Bf4 {[%emt 0:01:59]} Nd7 {[%emt 0:07:06]} 19. exf6 {[%emt 0:02:18]} gxf6 {[%emt 0:02:32]} 20. Rfe1 {[%emt 0:00:13]} Rae8 {[%emt 0:00:56]} 21. Rcd1 {[%emt 0:02:23]} Qf7 {[%emt 0:01:51]} 22. Ng3 {[%emt 0:01:32]} Rg8 {[%emt 0:01:17]} 23. Qh3 {[%emt 0:00:21]} Nxg3 {[%emt 0:01:28]} 24. Bxg3 {[%emt 0:00:01]} e5 {[%emt 0:04:27]} 25. Qf5 {[%emt 0:00:12]} Re7 {[%emt 0:00:07]} 26. c3 {[%emt 0:01:00]} dxc3 {[%emt 0:00:32]} 27. bxc3 {[%emt 0:00:01]} Rc8 {[%emt 0:01:44]} 28. Rd3 {[%emt 0:01:46]} Rc4 {[%emt 0:01:07]} 29. Red1 {[%emt 0:00:28]} Qg6 {[%emt 0:00:38]} 30. Qf3 {[%emt 0:02:18]} e4 {[%emt 0:00:20]} 31. Qe3 {[%emt 0:00:12]} Nc5 {[%emt 0:00:56]} 32. Rxd5 {[%emt 0:00:19]} Qf7 {[%emt 0:00:29]} 33. h5 {[%emt 0:02:00]} Na4 {[%emt 0:00:32]} 34. Rd8+ {[%emt 0:00:38]} Re8 {[%emt 0:00:34]} 35. Bh4 {[%emt 0:00:27]} Kg7 {[%emt 0:00:24]} 36. Qg3+ {[%emt 0:01:04]} Kf8 {[%emt 0:00:29]} 37. R1d7 {[%emt 0:00:23]} Rxd8 {[%emt 0:00:32]} 38. Rxd8+ {[%emt 0:00:07]} 1-0

[Event "Prague Open 2025"]
[Site "Prague"]
[Date "2025.01.11"]
[Round "3.13"]
[White "Mensing, Adrian"]
[Black "Jaskolka, Tomasz"]
[Result "1-0"]
[Annotator "ChessBase"]
[ECO "C15"]
[WhiteElo "2028"]
[BlackElo "2210"]
[PlyCount "95"]
[EventDate "2025.01.07"]
[EventType "swiss"]
[EventCountry "CZE"]
[SourceTitle "playchess.com"]
[Source "ChessBase"]
[SourceQuality "1"]
[TimeControl "40/5400+30:1800+30"]

1. d4 {[%emt 0:03:21]} e6 {[%emt 0:00:24]} 2. e4 {[%emt 0:03:28]} d5 {[%emt 0:00:04]} 3. Nc3 {[%emt 0:00:05]} Bb4 {[%emt 0:00:22]} 4. Nge2 {[%emt 0:00:24]} dxe4 {[%emt 0:00:53]} 5. a3 {[%emt 0:00:14]} Be7 {[%emt 0:03:03]} 6. Rg1 {[%emt 0:00:18]} Nf6 {[%emt 0:14:02]} 7. g4 {[%emt 0:00:19]} Nd5 {[%emt 0:18:15]} 8. Nxe4 {[%emt 0:03:33]} b5 {[%emt 0:03:06]} 9. Nf4 {[%emt 0:03:26]} a6 {[%emt 0:01:11]} 10. Bd3 {[%emt 0:09:23]} Bb7 {[%emt 0:00:51]} 11. Nxd5 {[%emt 0:09:30]} Qxd5 {[%emt 0:06:27]} 12. Be3 {[%emt 0:01:03]} Nc6 {[%emt 0:00:51]} 13. Nc3 {[%emt 0:10:32]} Qd6 {[%emt 0:02:54]} 14. Qf3 {[%emt 0:03:50]} b4 {[%emt 0:07:59]} 15. axb4 {[%emt 0:07:26]} Qxb4 {[%emt 0:01:31]} 16. Be4 {[%emt 0:00:34]} Nd8 {[%emt 0:00:46]} 17. Bxb7 {[%emt 0:07:23]} Qxb7 {[%emt 0:00:06]} 18. Qxb7 {[%emt 0:00:19]} Nxb7 {[%emt 0:00:02]} 19. Ke2 {[%emt 0:00:47]} Nd6 {[%emt 0:10:12]} 20. Kd3 {[%emt 0:01:51]} h5 {[%emt 0:00:28]} 21. h3 {[%emt 0:04:45]} hxg4 {[%emt 0:00:04]} 22. hxg4 {[%emt 0:00:08]} Kd7 {[%emt 0:00:25]} 23. Na4 {[%emt 0:02:52]} Nc8 {[%emt 0:00:05]} 24. c4 {[%emt 0:04:17]} Nb6 {[%emt 0:01:23]} 25. Nc5+ {[%emt 0:00:39]} Bxc5 {[%emt 0:00:22]} 26. dxc5 {[%emt 0:00:07]} Nc8 {[%emt 0:00:04]} 27. Rh1 {[%emt 0:02:01]} Rxh1 {[%emt 0:05:51]} 28. Rxh1 {[%emt 0:00:20]} Ne7 {[%emt 0:00:01]} 29. Rh7 {[%emt 0:03:18]} Rg8 {[%emt 0:01:27]} 30. Bd4 {[%emt 0:01:08]} f6 {[%emt 0:00:47]} 31. f4 {[%emt 0:01:46]} Ke8 {[%emt 0:04:19]} 32. b4 {[%emt 0:04:03]} Kf7 {[%emt 0:00:03]} 33. Rh1 {[%emt 0:01:26]} Ng6 {[%emt 0:03:51]} 34. Ke4 {[%emt 0:02:27]} e5 {[%emt 0:10:20]} 35. fxe5 {[%emt 0:02:09]} Re8 {[%emt 0:00:11]} 36. Rh5 {[%emt 0:04:28]} c6 {[%emt 0:03:04]} 37. Bc3 {[%emt 0:03:29]} Re7 {[%emt 0:01:00]} 38. Rf5 {[%emt 0:00:21]} Re8 {[%emt 0:01:39]} 39. g5 {[%emt 0:01:20]} Nxe5 {[%emt 0:00:33]} 40. Bxe5 {[%emt 0:00:29]} Rxe5+ {[%emt 0:00:24]} 41. Rxe5 {[%emt 0:30:07]} fxe5 {[%emt 0:30:02]} 42. Kxe5 {[%emt 0:00:11]} Ke7 {[%emt 0:00:01]} 43. Kd4 {[%emt 0:00:00]} Ke6 {[%emt 0:00:00]} 44. Kc3 {[%emt 0:00:00]} Ke5 {[%emt 0:00:00]} 45. b5 {[%emt 0:00:00]} axb5 {[%emt 0:00:00]} 46. cxb5 {[%emt 0:00:00]} cxb5 {[%emt 0:00:00]} 47. Kb4 {[%emt 0:00:00]} Ke6 {[%emt 0:00:00]} 48. Kxb5 {[%emt 0:00:00]} 1-0